bitfinex/quotes_BTCUSD_20240811
["timestamp","ask_amount","ask_price","bid_price","bid_amount"]
[1723403857147,1.69980301,60111.0,60110.0,0.003671]
[1723403857351,1.69037072,60111.0,60110.0,0.003671]
[1723403857575,1.70048493,60111.0,60110.0,0.003671]
[1723403857985,1.74888429,60111.0,60110.0,0.003671]
[1723403858210,1.73488429,60111.0,60110.0,0.003671]
[1723403858413,1.70048493,60111.0,60110.0,0.003671]
[1723403858702,1.73489227,60111.0,60110.0,0.003671]
[1723403858902,1.70048493,60111.0,60110.0,0.003671]
[1723403859105,1.68648493,60111.0,60110.0,0.003671]
[1723403859307,1.73489046,60111.0,60110.0,0.003671]
[1723403859609,2.46889046,60111.0,60110.0,0.003671]
[1723403859807,2.44089046,60111.0,60110.0,0.003671]
[1723403860015,2.45489046,60111.0,60110.0,0.003671]
[1723403860209,2.46889046,60111.0,60110.0,0.003671]
[1723403860414,2.45489046,60111.0,60110.0,0.003671]
[1723403860620,1.07213423,60111.0,60110.0,0.143471]
[1723403860825,0.98852679,60111.0,60110.0,0.143471]
[1723403861022,0.87452679,60111.0,60110.0,0.143471]
[1723403861238,0.84214527,60111.0,60110.0,0.143471]
[1723403861445,0.88855829,60111.0,60110.0,0.143471]
[1723403861655,0.88855829,60111.0,60110.0,0.003671]
[1723403862212,1.03837321,60111.0,60110.0,0.003671]
[1723403862453,1.46043857,60111.0,60110.0,0.003671]
[1723403862656,1.52401932,60111.0,60110.0,0.003671]
[1723403862855,1.6336989,60111.0,60110.0,0.003671]
[1723403863054,1.65357303,60111.0,60110.0,0.003671]
[1723403863280,1.6679088,60111.0,60110.0,0.003671]
[1723403863481,2.4039088,60111.0,60110.0,0.003671]
[1723403863733,2.4409088,60111.0,60110.0,0.003671]
[1723403863942,2.4269088,60111.0,60110.0,0.003671]
[1723403864085,2.4129088,60111.0,60110.0,0.003671]
[1723403864286,2.4269088,60111.0,60110.0,0.003671]
[1723403864748,2.22426297,60111.0,60110.0,0.003671]
[1723403864979,2.42890119,60111.0,60110.0,0.003671]
[1723403865193,1.69290119,60111.0,60110.0,0.003671]
[1723403865410,1.69300515,60111.0,60110.0,0.003671]
[1723403865945,1.67900515,60111.0,60110.0,0.003671]
[1723403866145,1.70700515,60111.0,60110.0,0.003671]
[1723403868568,1.7057446,60111.0,60110.0,0.003671]
[1723403868769,1.6917446,60111.0,60110.0,0.003671]
[1723403869175,1.7057446,60111.0,60110.0,0.003671]
[1723403869585,1.6917446,60111.0,60110.0,0.003671]
[1723403870017,1.7057446,60111.0,60110.0,0.003671]
[1723403870410,1.6777446,60111.0,60110.0,0.003671]
[1723403870638,1.6917446,60111.0,60110.0,0.003671]
[1723403870967,1.6777446,60111.0,60110.0,0.003671]
[1723403871577,1.6917446,60111.0,60110.0,0.003671]
[1723403872356,1.69206204,60111.0,60110.0,0.003671]
[1723403872743,2.32206204,60111.0,60110.0,0.003671]
[1723403875662,1.5910639,60111.0,60110.0,0.003671]
[1723403875864,1.71480695,60111.0,60110.0,0.003671]
[1723403876060,1.63783522,60111.0,60110.0,0.003671]
[1723403876237,1.48716577,60111.0,60110.0,0.083371]
[1723403876466,1.56142479,60111.0,60110.0,0.083371]
[1723403876904,1.5366742,60111.0,60110.0,0.003671]
[1723403877062,1.65497227,60111.0,60110.0,0.003671]
[1723403877260,1.67222363,60111.0,60110.0,0.003671]
[1723403877463,1.63782461,60111.0,60110.0,0.003671]
[1723403877892,1.4518862,60111.0,60110.0,0.003671]
[1723403878068,1.63731977,60111.0,60110.0,0.003671]
[1723403878265,1.67173899,60111.0,60110.0,0.003671]
[1723403878490,1.7136405,60111.0,60110.0,0.003671]
[1723403879329,1.58986942,60111.0,60110.0,0.003671]
[1723403879532,1.7136405,60111.0,60110.0,0.003671]
[1723403880180,1.57271004,60111.0,60110.0,0.003671]
[1723403880589,1.7136383,60111.0,60110.0,0.003671]
[1723403880798,1.71367802,60111.0,60110.0,0.003671]
[1723403881611,1.58986722,60111.0,60110.0,0.003671]
[1723403882717,1.0415739,60111.0,60110.0,0.083371]
[1723403882920,1.03934399,60111.0,60110.0,0.149171]
[1723403883118,1.34856919,60111.0,60110.0,0.149171]
[1723403883333,1.30869024,60111.0,60110.0,0.083371]
[1723403883530,1.06178824,60111.0,60110.0,0.083371]
[1723403883734,1.16088691,60111.0,60110.0,0.083371]
[1723403883944,0.98980415,60111.0,60110.0,0.083371]
[1723403884150,1.07580415,60111.0,60110.0,0.083371]
[1723403884350,1.05014068,60111.0,60110.0,0.149171]
[1723403884550,0.98980415,60111.0,60110.0,0.149171]
[1723403884959,0.97580415,60111.0,60110.0,0.149171]
[1723403885165,0.87568919,60111.0,60110.0,0.149171]
[1723403885826,0.88968919,60111.0,60110.0,0.149171]
[1723403886238,1.06328529,60111.0,60110.0,0.149171]
[1723403886440,1.15275944,60111.0,60110.0,0.149171]
[1723403886652,1.25188047,60111.0,60110.0,0.149171]
[1723403886861,1.053467,60111.0,60110.0,0.149171]
[1723403887067,1.30400029,60111.0,60110.0,0.149171]
[1723403887282,1.01996019,60111.0,60110.0,0.083371]
[1723403887491,1.15335024,60111.0,60110.0,0.083371]
[1723403887897,1.328785,60111.0,60110.0,0.083371]
[1723403888110,1.328785,60111.0,60110.0,0.003671]
[1723403888111,1.59838571,60111.0,60110.0,0.003671]
[1723403888314,1.65000581,60111.0,60110.0,0.003671]
[1723403890307,1.79879103,60111.0,60110.0,0.003671]
[1723403890930,1.69732966,60111.0,60110.0,0.003671]
[1723403891131,1.81708767,60111.0,60110.0,0.003671]
[1723403892856,2.04998967,60111.0,60110.0,0.003671]
[1723403893048,1.81708767,60111.0,60110.0,0.003671]
[1723403893484,1.8171722,60111.0,60110.0,0.003671]
[1723403893617,1.7565722,60111.0,60110.0,0.083271]
[1723403893816,1.15935636,60111.0,60110.0,0.147671]
[1723403894026,1.23170769,60111.0,60110.0,0.147671]
[1723403894231,1.00764114,60111.0,60110.0,0.147671]
[1723403894430,1.10689714,60111.0,60110.0,0.147671]
[1723403895213,1.10635404,60111.0,60110.0,0.147671]
[1723403895672,1.08917677,60111.0,60110.0,0.147671]
[1723403896049,1.07517677,60111.0,60110.0,0.147671]
[1723403896476,1.06117677,60111.0,60110.0,0.147671]
[1723403896697,1.07217677,60111.0,60110.0,0.147671]
[1723403896901,1.06117677,60111.0,60110.0,0.147671]
[1723403897296,1.06717677,60111.0,60110.0,0.147671]
[1723403897514,1.07517677,60111.0,60110.0,0.147671]
[1723403897829,1.06117677,60111.0,60110.0,0.147671]
[1723403898041,0.96192077,60111.0,60110.0,0.147671]
[1723403898244,0.97092077,60111.0,60110.0,0.147671]
[1723403899052,0.97892077,60111.0,60110.0,0.147671]
[1723403899488,0.97884756,60111.0,60110.0,0.147671]
[1723403900053,0.97885176,60111.0,60110.0,0.147671]
[1723403900403,0.92833147,60111.0,60110.0,0.147671]
[1723403901045,0.87871403,60111.0,60110.0,0.147671]
[1723403901338,1.1079546,60111.0,60110.0,0.003671]
[1723403901515,1.46587849,60111.0,60110.0,0.003671]
[1723403901712,1.47487849,60111.0,60110.0,0.003671]
[1723403901924,1.54329278,60111.0,60110.0,0.003671]
[1723403902124,1.4986883,60111.0,60110.0,0.003671]
[1723403902326,1.49867669,60111.0,60110.0,0.003671]
[1723403902527,1.55036835,60111.0,60110.0,0.003671]
[1723403902724,1.42633093,60111.0,60110.0,0.003671]
[1723403903512,1.42763648,60111.0,60110.0,0.003671]
[1723403904894,1.42063648,60111.0,60110.0,0.003671]
[1723403905263,1.43263648,60111.0,60110.0,0.003671]
[1723403905467,1.17871481,60111.0,60110.0,0.003671]
[1723403905796,1.19071481,60111.0,60110.0,0.003671]
[1723403905999,1.31477723,60111.0,60110.0,0.003671]
[1723403906652,1.15096231,60111.0,60110.0,0.147671]
[1723403906879,0.98808212,60111.0,60110.0,0.147671]
[1723403907069,1.15189704,60111.0,60110.0,0.083271]
[1723403907217,1.15189704,60111.0,60110.0,0.003671]
[1723403907218,1.22516531,60111.0,60110.0,0.003671]
[1723403907420,1.57524539,60111.0,60110.0,0.003671]
[1723403907618,1.58824467,60111.0,60110.0,0.003671]
[1723403908075,1.17435039,60111.0,60110.0,0.143271]
[1723403908282,1.21215464,60111.0,60110.0,0.143271]
[1723403908504,1.06308212,60111.0,60110.0,0.143271]
[1723403908865,1.19152296,60111.0,60110.0,0.143271]
[1723403909179,1.17952296,60111.0,60110.0,0.143271]
[1723403909387,1.19152296,60111.0,60110.0,0.143271]
[1723403909603,1.17952296,60111.0,60110.0,0.143271]
[1723403910070,1.17852296,60111.0,60110.0,0.143271]
[1723403910184,1.17434258,60111.0,60110.0,0.143271]
[1723403910660,1.07434258,60111.0,60110.0,0.143271]
[1723403910841,1.02688004,60111.0,60110.0,0.143271]
[1723403911046,1.15096073,60111.0,60110.0,0.143271]
[1723403911307,0.97608212,60111.0,60110.0,0.143271]
[1723403911695,1.07444316,60111.0,60110.0,0.143271]
[1723403911895,1.08644316,60111.0,60110.0,0.143271]
[1723403912069,1.07444316,60111.0,60110.0,0.143271]
[1723403912265,1.07443873,60111.0,60110.0,0.143271]
[1723403912647,1.08643873,60111.0,60110.0,0.143271]
[1723403915679,0.95241322,60111.0,60110.0,0.003671]
[1723403915891,1.08632571,60111.0,60110.0,0.003671]
[1723403916099,1.08638449,60111.0,60110.0,0.003671]
[1723403916296,1.08638449,60111.0,60110.0,0.083271]
[1723403916503,0.93641456,60111.0,60110.0,0.083271]
[1723403916705,0.98714052,60111.0,60110.0,0.083271]
[1723403917320,1.16291956,60111.0,60110.0,0.003671]
[1723403917524,1.13876114,60111.0,60110.0,0.003671]
[1723403918547,1.17323966,60111.0,60110.0,0.003671]
[1723403919389,1.40085458,60111.0,60110.0,0.003671]
[1723403919597,1.65094006,60111.0,60110.0,0.003671]
[1723403919810,1.56995658,60111.0,60110.0,0.003671]
[1723403920032,1.72751571,60111.0,60110.0,0.003671]
[1723403920237,1.87650581,60111.0,60110.0,0.003671]
[1723403920668,1.87645466,60111.0,60110.0,0.003671]
[1723403920846,1.72751571,60111.0,60110.0,0.003671]
[1723403921269,2.41751571,60111.0,60110.0,0.003671]
[1723403922427,2.39251571,60111.0,60110.0,0.003671]
[1723403922640,2.40651571,60111.0,60110.0,0.003671]
[1723403922831,2.42051571,60111.0,60110.0,0.003671]
[1723403923233,2.40651571,60111.0,60110.0,0.003671]
[1723403923640,2.42051571,60111.0,60110.0,0.003671]
[1723403923839,2.33532332,60111.0,60110.0,0.003671]
[1723403924036,3.00923533,60111.0,60110.0,0.003671]
[1723403924239,3.16679165,60111.0,60110.0,0.003671]
[1723403924441,2.89945613,60111.0,60110.0,0.003671]
[1723403924694,3.15159997,60111.0,60110.0,0.003671]
[1723403924874,2.77650589,60111.0,60110.0,0.003671]
[1723403925104,3.16877826,60111.0,60110.0,0.003671]
[1723403925231,3.17877826,60111.0,60110.0,0.003671]
[1723403925435,3.18277826,60111.0,60110.0,0.003671]
[1723403925762,3.15506078,60111.0,60110.0,0.003671]
[1723403925949,3.19306078,60111.0,60110.0,0.003671]
[1723403926199,3.00155897,60111.0,60110.0,0.003671]
[1723403926355,2.99755897,60111.0,60110.0,0.003671]
[1723403926555,3.00155897,60111.0,60110.0,0.003671]
[1723403926754,3.03155897,60111.0,60110.0,0.003671]
[1723403926965,3.17906078,60111.0,60110.0,0.003671]
[1723403927416,3.21306078,60111.0,60110.0,0.003671]
[1723403927837,3.20051661,60111.0,60110.0,0.003671]
[1723403928245,3.36130023,60111.0,60110.0,1e-06]
[1723403928409,3.36130023,60111.0,60102.0,0.00913]
[1723403928410,1.424131,60103.0,60102.0,0.00913]
[1723403928585,2.15121339,60103.0,60102.0,0.00913]
[1723403928784,2.2886264,60103.0,60102.0,0.00913]
[1723403929684,3.0386264,60103.0,60102.0,0.00913]
[1723403929892,3.0526264,60103.0,60102.0,0.00913]
[1723403930401,3.0386264,60103.0,60102.0,0.00913]
[1723403930560,3.0526264,60103.0,60102.0,0.00913]
[1723403930792,3.0726264,60103.0,60102.0,0.00913]
[1723403930981,3.0726264,60103.0,60102.0,1e-08]
[1723403930982,3.17814639,60103.0,60102.0,1e-08]
[1723403931185,3.30934591,60103.0,60102.0,1e-08]
[1723403931525,2.95215744,60103.0,60102.0,1e-08]
[1723403931689,3.1622029,60103.0,60102.0,1e-08]
[1723403931870,3.31341675,60103.0,60102.0,1e-08]
[1723403932271,3.1622029,60103.0,60102.0,1e-08]
[1723403932479,1.12982,60096.0,60094.0,0.00913]
[1723403932660,1.8700688,60096.0,60094.0,0.00913]
[1723403933057,2.13754005,60096.0,60094.0,0.00913]
[1723403933324,2.1030288,60096.0,60094.0,0.00913]
[1723403934084,2.8430288,60096.0,60094.0,0.00913]
[1723403934291,2.96684959,60096.0,60094.0,0.00913]
[1723403934729,2.87753626,60096.0,60094.0,0.00913]
[1723403934950,2.89153626,60096.0,60094.0,0.00913]
[1723403935158,2.8430288,60096.0,60094.0,0.00913]
[1723403935288,2.70692618,60096.0,60094.0,0.00913]
[1723403935494,2.87079604,60096.0,60094.0,0.00913]
[1723403935898,2.87081292,60096.0,60094.0,0.00913]
[1723403936105,3.15873755,60096.0,60094.0,0.00913]
[1723403936398,2.54395642,60096.0,60095.0,1e-08]
[1723403936647,2.74712211,60096.0,60095.0,1e-08]
[1723403936821,2.6125012,60096.0,60095.0,1e-08]
[1723403937231,2.6125012,60096.0,60094.0,1e-08]
[1723403937232,1.544266,60095.0,60094.0,1e-08]
[1723403937502,0.379458,60093.0,60092.0,0.01]
[1723403937703,1.98413473,60093.0,60092.0,0.01]
[1723403937829,2.0562135,60093.0,60092.0,0.01]
[1723403938271,0.496563,60075.0,60069.0,0.00202937]
[1723403938490,0.81585,60060.0,60059.0,0.60606061]
[1723403938684,1.24675795,60060.0,60059.0,0.60606061]
[1723403938919,0.91585,60060.0,60059.0,0.66756061]
[1723403939286,1.07966492,60060.0,60059.0,0.60606061]
[1723403940069,1.31276492,60060.0,60059.0,0.60606061]
[1723403940283,0.01,60058.0,60048.0,0.0003]
[1723403940468,0.51352792,60049.0,60048.0,1e-06]
[1723403940688,1.82638673,60049.0,60048.0,1e-06]
[1723403940896,1.79999324,60049.0,60048.0,1e-06]
[1723403941086,1.95128878,60049.0,60048.0,1e-06]
[1723403941366,2.11463524,60049.0,60048.0,1e-06]
[1723403941569,2.12463524,60049.0,60048.0,1e-06]
[1723403941754,1.140729,60044.0,60043.0,4e-05]
[1723403942008,1.46143004,60044.0,60043.0,4e-05]
[1723403942427,1.7248169,60044.0,60043.0,4e-05]
[1723403942621,1.8889666,60044.0,60043.0,4e-05]
[1723403942823,1.04832709,60035.0,60034.0,0.00766713]
[1723403943024,1.33514201,60035.0,60034.0,0.00766713]
[1723403943246,1.33514201,60035.0,60013.0,0.00913]
[1723403943247,0.28681492,60035.0,60013.0,0.00913]
[1723403943463,0.28681492,60035.0,60000.0,1.005674]
[1723403943464,1.13148,60001.0,60000.0,1.005674]
[1723403943678,1.13148,60001.0,60000.0,0.839009]
[1723403943679,1.86353422,60001.0,60000.0,0.839009]
[1723403943886,1.86353422,60001.0,60000.0,0.33115205]
[1723403943887,2.36814378,60001.0,60000.0,0.33115205]
[1723403944089,3.30477097,60001.0,60000.0,0.33115205]
[1723403944296,3.26258399,60001.0,60000.0,0.33115205]
[1723403944502,3.26258399,60001.0,59941.0,0.0049336]
[1723403944503,0.01,59947.0,59941.0,0.0049336]
[1723403944634,0.01,59958.0,59944.0,0.49107874]
[1723403944846,0.01,59954.0,59937.0,0.0049336]
[1723403945048,0.1,59963.0,59937.0,0.0049336]
[1723403945049,0.01,59958.0,59937.0,0.0049336]
[1723403945247,0.01,59945.0,59937.0,0.0049336]
[1723403945455,0.360361,59938.0,59937.0,0.0049336]
[1723403945742,1.127309,59938.0,59937.0,0.0049336]
[1723403945909,1.61393402,59938.0,59937.0,0.0049336]
[1723403946086,0.17381492,59938.0,59937.0,0.0049336]
[1723403946309,0.01,59947.0,59936.0,0.54869421]
[1723403946515,0.01,59940.0,59936.0,0.54869421]
[1723403946722,0.028,59958.0,59936.0,0.54869421]
[1723403946723,0.136789,59937.0,59936.0,0.54869421]
[1723403946925,0.10971402,59937.0,59936.0,0.54869421]
[1723403947136,0.00081996,59938.0,59937.0,0.116789]
[1723403947342,0.014,59945.0,59940.0,0.116782]
[1723403947544,0.00971402,59949.0,59944.0,0.19862146]
[1723403947748,0.49107874,59966.0,59938.0,0.1427]
[1723403947749,0.12649902,59939.0,59938.0,0.1427]
[1723403948027,0.27352894,59939.0,59938.0,0.1427]
[1723403948231,0.39031394,59939.0,59938.0,0.1427]
[1723403948413,0.00082113,59941.0,59938.0,0.21183942]
[1723403948548,0.00082113,59941.0,59940.0,0.369783]
[1723403948773,0.333476,59964.0,59940.0,0.3328]
[1723403948774,0.00971402,59947.0,59940.0,0.3328]
[1723403948994,0.01971402,59954.0,59945.0,0.08184646]
[1723403949203,0.49107874,59966.0,59945.0,0.08184646]
[1723403949204,0.00971402,59957.0,59953.0,0.0798]
[1723403949403,0.00971402,59958.0,59954.0,0.01616465]
[1723403949624,0.01971402,59958.0,59954.0,0.01616465]
[1723403950202,0.01971402,59960.0,59956.0,0.0629]
[1723403950406,0.00971402,59960.0,59959.0,0.08184646]
[1723403950545,0.01971402,59962.0,59957.0,0.00333541]
[1723403950760,0.01971402,59962.0,59961.0,0.116742]
[1723403950966,0.00971402,59967.0,59961.0,0.00333523]
[1723403951176,0.00971402,59967.0,59962.0,0.31328]
[1723403951444,0.00971402,59967.0,59966.0,0.116732]
[1723403951616,0.00971402,59970.0,59967.0,0.11673]
[1723403951831,0.00971402,59970.0,59969.0,0.116726]
[1723403952073,0.2334,59983.0,59968.0,0.0350201]
[1723403952074,0.00971402,59975.0,59968.0,0.0350201]
[1723403952288,0.00971402,59975.0,59969.0,0.00333453]
[1723403952510,0.00971402,59976.0,59969.0,0.00333453]
[1723403952725,0.00971402,59979.0,59976.0,0.116712]
[1723403952944,0.00971402,59982.0,59977.0,0.1525712]
[1723403953165,0.02,59989.0,59982.0,0.1167]
[1723403953166,0.02971402,59989.0,59982.0,0.1167]
[1723403953419,0.02971402,59989.0,59979.0,0.233413]
[1723403953645,0.00971402,59990.0,59986.0,0.0758]
[1723403953857,0.00971402,59990.0,59987.0,0.03125328]
[1723403954082,0.00971402,59990.0,59980.0,0.16381492]
[1723403954083,0.00971402,59978.0,59969.0,0.0758]
[1723403954294,0.00971402,59970.0,59969.0,0.0758]
[1723403954502,0.00971402,59970.0,59969.0,0.08989]
[1723403955149,0.00971402,59970.0,59969.0,0.206616]
[1723403955360,0.00971402,59970.0,59969.0,0.0758]
[1723403955361,0.12643902,59970.0,59969.0,0.0758]
[1723403955560,0.37988902,59970.0,59969.0,0.0758]
[1723403955766,0.1,59976.0,59969.0,0.0758]
[1723403955767,0.00971402,59974.0,59969.0,0.0758]
[1723403955990,0.00971402,59973.0,59972.0,0.116721]
[1723403956216,0.00971402,59970.0,59969.0,0.0758]
[1723403956430,0.00971402,59970.0,59954.0,0.0758]
[1723403956431,0.12646802,59955.0,59954.0,0.0758]
[1723403956850,0.00971402,59955.0,59954.0,0.0758]
[1723403957056,0.00971402,59961.0,59954.0,0.0758]
[1723403957307,0.01,59968.0,59959.0,0.08184646]
[1723403957308,0.00971402,59964.0,59959.0,0.08184646]
[1723403957738,0.00971402,59964.0,59959.0,0.19859146]
[1723403957941,0.00971402,59970.0,59960.0,0.23682314]
[1723403958145,0.08184646,59997.0,59959.0,0.08184646]
[1723403958146,0.00971402,59971.0,59966.0,0.0758]
[1723403958354,0.00971402,59967.0,59966.0,0.0758]
[1723403958560,0.02971402,59967.0,59958.0,0.0758]
[1723403958770,0.116736,59965.0,59958.0,0.0758]
[1723403958970,0.136738,59963.0,59958.0,0.0758]
[1723403959182,0.02,59963.0,59959.0,0.008989]
[1723403959386,0.02,59963.0,59958.0,0.0758]
[1723403959387,0.37995202,59959.0,59958.0,0.0758]
[1723403959588,0.02971402,59959.0,59958.0,0.0758]
[1723403959742,0.37995202,59959.0,59958.0,0.0758]
[1723403959944,0.14646002,59959.0,59958.0,0.0758]
[1723403960148,0.14646002,59959.0,59958.0,0.084789]
[1723403960352,0.14646002,59959.0,59942.0,0.255]
[1723403960353,0.01,59942.0,59937.0,0.0009141]
[1723403960700,0.14650102,59938.0,59937.0,0.0009141]
[1723403960904,0.00971402,59942.0,59936.0,0.57560831]
[1723403961136,0.00971402,59939.0,59936.0,0.57560831]
[1723403961357,0.02971402,59937.0,59936.0,0.57560831]
[1723403961557,0.02942864,59937.0,59936.0,0.57560831]
[1723403962097,0.01053491,59937.0,59936.0,0.69239931]
[1723403962300,0.01053491,59937.0,59936.0,0.49980831]
[1723403962523,0.77800945,59937.0,59936.0,0.49980831]
[1723403962732,1.11158745,59937.0,59936.0,0.49980831]
[1723403963344,1.4563242,59937.0,59936.0,0.49980831]
[1723403963756,1.11158745,59937.0,59936.0,0.49980831]
[1723403963966,0.48061653,59937.0,59936.0,0.49980831]
[1723403964179,0.53471743,59937.0,59936.0,0.49980831]
[1723403964379,0.87800945,59937.0,59936.0,0.49980831]
[1723403964587,0.95860945,59937.0,59936.0,0.49980831]
[1723403964821,0.71419453,59937.0,59936.0,0.55230716]
[1723403965225,0.38061653,59937.0,59936.0,0.55230716]
[1723403965452,0.00082089,59937.0,59936.0,0.61740716]
[1723403965651,0.00082089,59937.0,59936.0,0.89801308]
[1723403965852,0.00082089,59937.0,59936.0,0.97381308]
[1723403966073,0.01053491,59937.0,59936.0,0.49980831]
[1723403966316,0.47769091,59937.0,59936.0,0.49980831]
[1723403966499,0.36090191,59937.0,59936.0,0.49980831]
[1723403966719,0.59447991,59937.0,59936.0,0.49980831]
[1723403967041,0.01053491,59937.0,59936.0,0.55230716]
[1723403967219,0.38061653,59937.0,59936.0,0.49980831]
[1723403967372,0.77800945,59937.0,59936.0,0.49980831]
[1723403968138,0.77800945,59937.0,59936.0,0.48560831]
[1723403968586,0.54443145,59937.0,59936.0,0.48560831]
[1723403968802,0.03024953,59937.0,59936.0,0.53668716]
[1723403969002,0.01053551,59937.0,59936.0,0.53668716]
[1723403969211,0.00082089,59937.0,59936.0,0.73507816]
[1723403969639,0.00082089,59937.0,59936.0,0.96866016]
[1723403969847,0.00082089,59937.0,59936.0,0.73507816]
[1723403970057,0.00082089,59937.0,59936.0,0.61828716]
[1723403970265,0.01053551,59937.0,59936.0,0.61828716]
[1723403970666,0.00082089,59937.0,59936.0,0.61828716]
[1723403970918,0.00082089,59937.0,59936.0,0.73507816]
[1723403971167,0.00082089,59937.0,59936.0,0.61828716]
[1723403971386,0.00082089,59937.0,59936.0,1.20224216]
[1723403971601,0.00082089,59937.0,59936.0,0.79847816]
[1723403971802,0.00082089,59937.0,59936.0,1.26564216]
[1723403972227,0.00082089,59937.0,59936.0,1.42945708]
[1723403972439,0.00082089,59937.0,59936.0,1.91803908]
[1723403972652,0.00082089,59937.0,59936.0,2.15219244]
[1723403972860,0.00971402,59962.0,59957.0,0.116749]
[1723403973066,0.000832,59964.0,59958.0,0.15510931]
[1723403973067,0.00971402,59960.0,59958.0,0.15510931]
[1723403973279,0.000832,59964.0,59963.0,0.116738]
[1723403973488,0.000832,59964.0,59960.0,0.233487]
[1723403973699,0.000832,59964.0,59961.0,0.00333518]
[1723403973918,0.000832,59964.0,59963.0,0.116738]
[1723403974114,0.000832,59964.0,59963.0,0.17412876]
[1723403974524,0.000832,59964.0,59963.0,0.05739076]
[1723403976056,0.000832,59964.0,59963.0,0.40760576]
[1723403976527,0.000832,59964.0,59963.0,0.80489768]
[1723403976735,0.000832,59964.0,59963.0,1.36816006]
[1723403976939,0.000832,59964.0,59963.0,1.69318771]
[1723403977145,0.49107874,59981.0,59980.0,0.0765]
[1723403977358,0.49107874,59981.0,59980.0,0.488616]
[1723403977589,0.00971402,59990.0,59980.0,0.21790587]
[1723403977788,0.0086708,59985.0,59980.0,0.44628359]
[1723403978001,0.01971402,59989.0,59981.0,0.233405]
[1723403978002,0.0086708,59987.0,59981.0,0.233405]
[1723403978201,0.0086708,59986.0,59983.0,0.116698]
[1723403978406,0.00971402,59989.0,59980.0,0.32957959]
[1723403978620,0.0086708,59985.0,59980.0,0.32957959]
[1723403978830,0.0086708,59988.0,59984.0,0.116696]
[1723403979028,0.0086708,59987.0,59984.0,0.116696]
[1723403979667,0.0086708,59988.0,59985.0,0.116694]
[1723403979880,0.00971402,59990.0,59988.0,0.00028572]
[1723403980098,0.00971402,59990.0,59988.0,0.02365369]
[1723403980730,0.01971402,59996.0,59989.0,0.08184646]
[1723403980933,0.00971402,59996.0,59991.0,0.116683]
[1723403981149,0.0086708,59995.0,59992.0,0.00333334]
[1723403981384,0.02838482,59996.0,59993.0,0.0765]
[1723403981594,0.066774,60001.0,59995.0,0.08184646]
[1723403981801,0.08648802,60001.0,59999.0,0.062]
[1723403982003,0.233291,60011.0,60000.0,0.01820021]
[1723403982004,0.00971402,60002.0,60000.0,0.01820021]
[1723403982208,0.02838482,60003.0,60001.0,0.00333291]
[1723403982425,0.0086708,60003.0,60001.0,0.00333291]
[1723403982629,0.0086708,60002.0,60001.0,0.00333291]
[1723403982844,0.0086708,60002.0,60000.0,0.01820021]
[1723403983048,0.0086708,60003.0,60001.0,0.04302112]
[1723403983269,0.00971402,60005.0,60001.0,0.15968512]
[1723403983477,0.00971402,60006.0,60002.0,0.08184646]
[1723403983693,0.0001,60009.0,60002.0,0.08184646]
[1723403983694,0.0001,60009.0,60008.0,0.233302]
[1723403983989,0.0001,60009.0,60008.0,0.0765]
[1723403983990,0.0087708,60009.0,60008.0,0.0765]
[1723403984224,0.0001,60009.0,60008.0,0.0765]
[1723403984874,0.0001,60009.0,60008.0,0.193151]
[1723403985082,0.0001,60009.0,60008.0,0.46928206]
[1723403985666,0.0001,60009.0,60008.0,0.62976477]
[1723403985866,0.0001,60009.0,60008.0,0.86306677]
[1723403986073,0.0001,60009.0,60008.0,0.62976477]
[1723403986277,0.0001,60009.0,60008.0,0.39646277]
[1723403986493,0.000932,60009.0,60008.0,0.39646277]
[1723403986700,0.000932,60009.0,60008.0,0.62976477]
[1723403986909,0.000932,60009.0,60008.0,0.86306677]
[1723403987110,0.000932,60009.0,60008.0,0.39646277]
[1723403987334,0.000932,60009.0,60008.0,0.62976477]
[1723403987515,0.000932,60009.0,60008.0,0.39646277]
[1723403987715,0.000932,60009.0,60008.0,0.62976477]
[1723403987952,0.000932,60009.0,60008.0,0.39646277]
[1723403988829,0.000932,60009.0,60008.0,0.62976477]
[1723403990111,0.000932,60009.0,60008.0,0.86306677]
[1723403990323,0.000932,60009.0,60008.0,0.89033144]
[1723403991108,0.000932,60009.0,60008.0,1.18423344]
[1723403991482,0.000932,60009.0,60008.0,0.95454662]
[1723403991690,0.000932,60009.0,60008.0,1.21084862]
[1723403992159,0.00832,60024.0,60023.0,0.494864]
[1723403992361,0.00832,60024.0,60023.0,0.78599026]
[1723403992563,0.00832,60024.0,60023.0,1.01923326]
[1723403992766,0.00832,60024.0,60023.0,0.78599026]
[1723403993171,0.00832,60024.0,60023.0,1.01923326]
[1723403993988,0.00832,60024.0,60023.0,0.3542798]
[1723403994155,0.00832,60024.0,60023.0,0.32701513]
[1723403994967,0.03670482,60024.0,60023.0,0.01820021]
[1723403995167,0.0086708,60016.0,60012.0,0.0803]
[1723403995376,0.0086708,60014.0,60012.0,0.0803]
[1723403995630,0.0086708,60012.0,60009.0,0.0647]
[1723403995795,0.0086708,60010.0,60008.0,0.03949685]
[1723403996144,0.00971402,60020.0,60009.0,0.24566138]
[1723403996357,0.0086708,60022.0,60012.0,0.233282]
[1723403996603,0.0086708,60018.0,60009.0,0.24566138]
[1723403996807,0.0086708,60016.0,60011.0,0.116643]
[1723403997012,0.0086708,60010.0,60007.0,0.0803]
[1723403997218,0.116641,60013.0,60008.0,0.1995609]
[1723403997424,0.1253098,60014.0,60008.0,0.1995609]
[1723403997594,0.0086708,60012.0,60008.0,0.1995609]
[1723403997825,0.1253138,60012.0,60008.0,0.03574598]
[1723403998038,0.0086708,60008.0,60007.0,0.0803]
[1723403998242,0.1253288,60004.0,60003.0,0.04383978]
[1723403998446,0.0086708,59995.0,59994.0,0.0803]
[1723403998661,0.0086708,59995.0,59994.0,0.0948]
[1723403999300,0.1253468,59995.0,59994.0,0.0145]
[1723403999535,0.0086708,59992.0,59990.0,0.0647]
[1723403999736,0.0086708,59995.0,59991.0,0.16381492]
[1723404000355,0.1253488,59994.0,59991.0,0.16381492]
[1723404000564,0.25305802,59998.0,59991.0,0.16381492]
[1723404000565,0.0086708,59995.0,59991.0,0.16381492]
[1723404000771,0.0086708,60001.0,59991.0,0.16714827]
[1723404000982,0.116666,60000.0,59996.0,0.08184646]
[1723404001181,0.116666,60000.0,59995.0,0.08184646]
[1723404001182,0.1253448,59996.0,59995.0,0.08184646]
[1723404001391,0.1253448,59996.0,59995.0,0.02705894]